[Event "Late-Titled-Tuesday-Blitz-April-30-2024"]
[Site "Chess.com"]
[Date "2024.04.30"]
[Round "9"]
[White "1g60-1"]
[Black "Navyblue1"]
[Result "1-0"]
[WhiteElo "2420"]
[BlackElo "2239"]
[TimeControl "180+1"]
[EndTime "15:43:24 PDT"]
[Termination "1g60-1 won on time"]

1. e4 {[%clk 0:03:00.9]} 1... c5 {[%clk 0:02:57.1]} 2. Nf3 {[%clk 0:03:01.2]}
2... d6 {[%clk 0:02:56.7]} 3. d4 {[%clk 0:03:01.6]} 3... cxd4 {[%clk 0:02:57.6]}
4. Nxd4 {[%clk 0:03:02.4]} 4... Nf6 {[%clk 0:02:57.9]} 5. Nc3 {[%clk 0:03:03]}
5... a6 {[%clk 0:02:58.2]} 6. Be3 {[%clk 0:03:03.3]} 6... e5 {[%clk 0:02:57.8]}
7. Nb3 {[%clk 0:03:03.6]} 7... Be7 {[%clk 0:02:56.9]} 8. f3 {[%clk 0:03:04.3]}
8... h5 {[%clk 0:02:57]} 9. Qd2 {[%clk 0:03:05]} 9... Be6 {[%clk 0:02:57.2]} 10.
O-O-O {[%clk 0:03:05.7]} 10... Nbd7 {[%clk 0:02:57.7]} 11. Kb1 {[%clk
0:03:05.6]} 11... Rc8 {[%clk 0:02:57.8]} 12. h3 {[%clk 0:03:05.1]} 12... h4
{[%clk 0:02:56.5]} 13. f4 {[%clk 0:03:02.7]} 13... b5 {[%clk 0:02:51.9]} 14. f5
{[%clk 0:03:01.9]} 14... Bc4 {[%clk 0:02:48.2]} 15. Bd3 {[%clk 0:02:51.9]} 15...
b4 {[%clk 0:02:11.7]} 16. Ne2 {[%clk 0:02:25.2]} 16... a5 {[%clk 0:01:57.7]} 17.
g4 {[%clk 0:02:23.1]} 17... hxg3 {[%clk 0:01:55]} 18. Nxg3 {[%clk 0:02:23.4]}
18... a4 {[%clk 0:01:45.4]} 19. Nc1 {[%clk 0:02:22.7]} 19... a3 {[%clk
0:00:54.5]} 20. b3 {[%clk 0:02:19.7]} 20... Bxd3 {[%clk 0:00:54.2]} 21. Nxd3
{[%clk 0:02:08.4]} 21... d5 {[%clk 0:00:45.7]} 22. Nxb4 {[%clk 0:02:01.1]} 22...
d4 {[%clk 0:00:20.4]} 23. Bg5 {[%clk 0:01:52.3]} 23... Qb6 {[%clk 0:00:18.7]}
24. Nd3 {[%clk 0:01:48.8]} 24... Qc6 {[%clk 0:00:18.1]} 25. Rde1 {[%clk
0:01:33.1]} 25... Rb8 {[%clk 0:00:11.4]} 26. h4 {[%clk 0:01:25.2]} 26... Qb5
{[%clk 0:00:08.4]} 27. h5 {[%clk 0:01:22.4]} 27... Kd8 {[%clk 0:00:05.4]} 28. h6
{[%clk 0:01:15]} 28... gxh6 {[%clk 0:00:05.3]} 29. Bxh6 {[%clk 0:01:15.5]} 29...
Rg8 {[%clk 0:00:05.4]} 30. Nh5 {[%clk 0:01:07.3]} 30... Nxh5 {[%clk 0:00:04]}
31. Rxh5 {[%clk 0:01:08.2]} 31... f6 {[%clk 0:00:04]} 32. Qc1 {[%clk 0:01:01.4]}
32... Nb6 {[%clk 0:00:03.8]} 33. Bd2 {[%clk 0:00:56.8]} 33... Na4 {[%clk
0:00:02.8]} 34. Ka1 {[%clk 0:00:53.6]} 34... Nc3 {[%clk 0:00:01.6]} 35. Bxc3
{[%clk 0:00:53.7]} 35... dxc3 {[%clk 0:00:02.4]} 36. Rh7 {[%clk 0:00:45.1]} 1-0

[Event "Late-Titled-Tuesday-Blitz-April-30-2024"]
[Site "Chess.com"]
[Date "2024.04.30"]
[Round "9"]
[White "Casablanca"]
[Black "Vincefm"]
[Result "1-0"]
[WhiteElo "2640"]
[BlackElo "2454"]
[TimeControl "180+1"]
[EndTime "15:43:39 PDT"]
[Termination "Casablanca won on time"]

1. Nf3 {[%clk 0:03:00.9]} 1... Nf6 {[%clk 0:02:53.2]} 2. c4 {[%clk 0:02:56.9]}
2... e6 {[%clk 0:02:52.5]} 3. d4 {[%clk 0:02:56.8]} 3... Bb4+ {[%clk 0:02:50.4]}
4. Nbd2 {[%clk 0:02:56.7]} 4... O-O {[%clk 0:02:49.3]} 5. a3 {[%clk 0:02:57.1]}
5... Be7 {[%clk 0:02:49.1]} 6. e4 {[%clk 0:02:57]} 6... d6 {[%clk 0:02:49.7]} 7.
Bd3 {[%clk 0:02:56.5]} 7... e5 {[%clk 0:02:49.1]} 8. O-O {[%clk 0:02:55.7]} 8...
Nc6 {[%clk 0:02:46.5]} 9. d5 {[%clk 0:02:55.7]} 9... Nb8 {[%clk 0:02:46.5]} 10.
b4 {[%clk 0:02:45.5]} 10... a5 {[%clk 0:02:45.3]} 11. Nb3 {[%clk 0:02:43.6]}
11... axb4 {[%clk 0:02:36.9]} 12. axb4 {[%clk 0:02:43.7]} 12... Rxa1 {[%clk
0:02:37.2]} 13. Nxa1 {[%clk 0:02:44.6]} 13... c6 {[%clk 0:02:37.1]} 14. Nc2
{[%clk 0:02:33.9]} 14... cxd5 {[%clk 0:02:36.1]} 15. cxd5 {[%clk 0:02:34.8]}
15... Nfd7 {[%clk 0:02:22.8]} 16. Ne3 {[%clk 0:02:33.6]} 16... Nb6 {[%clk
0:02:21.5]} 17. Qb3 {[%clk 0:02:30.3]} 17... g6 {[%clk 0:02:16.8]} 18. Bd2
{[%clk 0:01:51.2]} 18... f5 {[%clk 0:02:05.6]} 19. Rc1 {[%clk 0:01:50.1]} 19...
Bd7 {[%clk 0:01:48.4]} 20. b5 {[%clk 0:01:41]} 20... f4 {[%clk 0:01:38]} 21. Nf1
{[%clk 0:01:27]} 21... g5 {[%clk 0:01:36.2]} 22. Ba5 {[%clk 0:01:26.8]} 22... g4
{[%clk 0:00:19.4]} 23. N3d2 {[%clk 0:01:27.3]} 23... Be8 {[%clk 0:00:17.8]} 24.
Nc4 {[%clk 0:01:25.5]} 24... N8d7 {[%clk 0:00:18.3]} 25. Nfd2 {[%clk 0:01:24.4]}
25... g3 {[%clk 0:00:15.8]} 26. f3 {[%clk 0:01:20.8]} 26... gxh2+ {[%clk
0:00:15.5]} 27. Kh1 {[%clk 0:01:21.3]} 27... Nf6 {[%clk 0:00:05.8]} 28. Nxb6
{[%clk 0:01:21.7]} 28... Nh5 {[%clk 0:00:05.2]} 29. Nf1 {[%clk 0:01:17.5]} 29...
Bh4 {[%clk 0:00:03.8]} 30. Qc3 {[%clk 0:01:00.7]} 30... Qg5 {[%clk 0:00:04.3]}
31. Nc8 {[%clk 0:00:34.7]} 31... Rf6 {[%clk 0:00:02.3]} 32. Ne7+ {[%clk
0:00:34.2]} 32... Kf7 {[%clk 0:00:02.1]} 33. Nf5 {[%clk 0:00:35.1]} 33... Rg6
{[%clk 0:00:02.2]} 34. Qc7+ {[%clk 0:00:34]} 34... Kf8 {[%clk 0:00:01.5]} 35.
Rc2 {[%clk 0:00:29.4]} 1-0

[Event "Late-Titled-Tuesday-Blitz-April-30-2024"]
[Site "Chess.com"]
[Date "2024.04.30"]
[Round "9"]
[White "DrVelja"]
[Black "oskariot"]
[Result "1-0"]
[WhiteElo "2965"]
[BlackElo "2760"]
[TimeControl "180+1"]
[EndTime "15:43:40 PDT"]
[Termination "DrVelja won by checkmate"]

1. Nf3 {[%clk 0:03:00.9]} 1... c5 {[%clk 0:02:56.4]} 2. e4 {[%clk 0:02:59]} 2...
e6 {[%clk 0:02:49.7]} 3. d4 {[%clk 0:02:56.1]} 3... cxd4 {[%clk 0:02:48.5]} 4.
Nxd4 {[%clk 0:02:57]} 4... Nf6 {[%clk 0:02:47.8]} 5. Nc3 {[%clk 0:02:57]} 5...
d6 {[%clk 0:02:46.9]} 6. g4 {[%clk 0:02:56.3]} 6... e5 {[%clk 0:02:45.8]} 7.
Bb5+ {[%clk 0:02:52.3]} 7... Bd7 {[%clk 0:02:45.3]} 8. Bxd7+ {[%clk 0:02:51.6]}
8... Qxd7 {[%clk 0:02:46.2]} 9. Nf5 {[%clk 0:02:51.2]} 9... h5 {[%clk
0:02:46.8]} 10. g5 {[%clk 0:02:49.2]} 10... Nxe4 {[%clk 0:02:42.8]} 11. Nxg7+
{[%clk 0:02:49.2]} 11... Bxg7 {[%clk 0:02:43.3]} 12. Nxe4 {[%clk 0:02:49.9]}
12... d5 {[%clk 0:02:41.3]} 13. Ng3 {[%clk 0:02:47.3]} 13... Nc6 {[%clk
0:02:19.9]} 14. Be3 {[%clk 0:02:27]} 14... d4 {[%clk 0:02:08]} 15. Bd2 {[%clk
0:02:25.6]} 15... O-O-O {[%clk 0:01:58.9]} 16. Qe2 {[%clk 0:01:58.1]} 16... e4
{[%clk 0:01:24.9]} 17. Nxe4 {[%clk 0:01:45]} 17... d3 {[%clk 0:01:25.2]} 18.
cxd3 {[%clk 0:01:24.8]} 18... Nd4 {[%clk 0:01:25]} 19. Rc1+ {[%clk 0:01:05]}
19... Kb8 {[%clk 0:01:23.3]} 20. Qe3 {[%clk 0:00:50.9]} 20... Rhe8 {[%clk
0:00:42.2]} 21. O-O {[%clk 0:00:49.9]} 21... Ka8 {[%clk 0:00:42.4]} 22. Kh1
{[%clk 0:00:49.7]} 22... Qd5 {[%clk 0:00:41.8]} 23. Rc5 {[%clk 0:00:43.2]} 23...
Qxa2 {[%clk 0:00:39.3]} 24. Bc3 {[%clk 0:00:27.8]} 24... Qe6 {[%clk 0:00:20.6]}
25. Ra1 {[%clk 0:00:22.2]} 25... a6 {[%clk 0:00:21]} 26. Ra4 {[%clk 0:00:13.3]}
26... Qd7 {[%clk 0:00:18]} 27. Rac4 {[%clk 0:00:09.6]} 27... Nc2 {[%clk
0:00:16.6]} 28. Qd2 {[%clk 0:00:08.7]} 28... Qxd3 {[%clk 0:00:17.2]} 29. Qxd3
{[%clk 0:00:08.3]} 29... Rxd3 {[%clk 0:00:18.1]} 30. Bxg7 {[%clk 0:00:08.7]}
30... Nd4 {[%clk 0:00:15]} 31. Rxd4 {[%clk 0:00:08.6]} 31... Rxd4 {[%clk
0:00:14.4]} 32. Bxd4 {[%clk 0:00:09.5]} 32... Rxe4 {[%clk 0:00:15.3]} 33. Rc8#
{[%clk 0:00:10.1]} 1-0

[Event "Late-Titled-Tuesday-Blitz-April-30-2024"]
[Site "Chess.com"]
[Date "2024.04.30"]
[Round "9"]
[White "reevecanada"]
[Black "NoSpaghettiForYou"]
[Result "0-1"]
[WhiteElo "2627"]
[BlackElo "2523"]
[TimeControl "180+1"]
[EndTime "15:43:45 PDT"]
[Termination "NoSpaghettiForYou won by resignation"]

1. e4 {[%clk 0:02:57.8]} 1... c5 {[%clk 0:02:59.7]} 2. Nf3 {[%clk 0:02:56.9]}
2... Nc6 {[%clk 0:02:59.8]} 3. Bb5 {[%clk 0:02:55.6]} 3... Nf6 {[%clk
0:02:59.8]} 4. Nc3 {[%clk 0:02:48.7]} 4... Nd4 {[%clk 0:02:58.1]} 5. Bc4 {[%clk
0:02:45.4]} 5... Qc7 {[%clk 0:02:44.1]} 6. O-O {[%clk 0:02:42.4]} 6... e6 {[%clk
0:02:30.3]} 7. h3 {[%clk 0:02:36.1]} 7... a6 {[%clk 0:02:29]} 8. a4 {[%clk
0:02:35.5]} 8... d6 {[%clk 0:02:23.5]} 9. d3 {[%clk 0:02:34.1]} 9... Be7 {[%clk
0:02:20.8]} 10. Be3 {[%clk 0:02:33.2]} 10... Nxf3+ {[%clk 0:02:19.3]} 11. Qxf3
{[%clk 0:02:31.4]} 11... b6 {[%clk 0:02:16.2]} 12. Qg3 {[%clk 0:02:30.4]} 12...
Bb7 {[%clk 0:02:12.6]} 13. Qxg7 {[%clk 0:02:28.8]} 13... Rg8 {[%clk 0:02:11.5]}
14. Qh6 {[%clk 0:02:28.4]} 14... d5 {[%clk 0:02:03.3]} 15. exd5 {[%clk
0:02:10.5]} 15... exd5 {[%clk 0:02:04.2]} 16. Bf4 {[%clk 0:02:10.1]} 16... dxc4
{[%clk 0:01:57.6]} 17. Bxc7 {[%clk 0:02:08.3]} 17... Rxg2+ {[%clk 0:01:57.1]}
18. Kh1 {[%clk 0:02:06.7]} 18... Rg6+ {[%clk 0:01:57.1]} 19. f3 {[%clk
0:02:03.2]} 19... Rxh6 {[%clk 0:01:57.2]} 20. dxc4 {[%clk 0:02:03.4]} 20...
Rxh3+ {[%clk 0:01:35.9]} 21. Kg2 {[%clk 0:02:01.2]} 21... Rh6 {[%clk 0:01:34.8]}
22. Bxb6 {[%clk 0:02:00.6]} 22... Rg6+ {[%clk 0:01:34.4]} 23. Kf2 {[%clk
0:01:58.7]} 23... Nd7 {[%clk 0:01:30.4]} 24. Bc7 {[%clk 0:01:55.6]} 24... Bh4+
{[%clk 0:01:23.4]} 25. Ke3 {[%clk 0:01:52.4]} 25... Re6+ {[%clk 0:01:15.8]} 26.
Kf4 {[%clk 0:01:34.8]} 26... Rc8 {[%clk 0:01:10.4]} 27. Ba5 {[%clk 0:01:32]}
27... h6 {[%clk 0:01:08]} 28. Kg4 {[%clk 0:01:30.5]} 28... Be7 {[%clk
0:01:05.7]} 29. f4 {[%clk 0:01:26.5]} 29... Rg6+ {[%clk 0:01:04.9]} 30. Kf5
{[%clk 0:01:22.6]} 30... Rcc6 {[%clk 0:01:00.9]} 31. Nd5 {[%clk 0:01:21.4]}
31... Rce6 {[%clk 0:00:57.4]} 32. Nc7+ {[%clk 0:01:19.9]} 32... Kf8 {[%clk
0:00:55.4]} 33. Nxe6+ {[%clk 0:01:20]} 33... Rxe6 {[%clk 0:00:55]} 34. Rfe1
{[%clk 0:01:10.6]} 34... Rf6+ {[%clk 0:00:47.1]} 35. Kg4 {[%clk 0:01:06.7]}
35... Rg6+ {[%clk 0:00:47.5]} 36. Kh3 {[%clk 0:01:04.7]} 36... Bd6 {[%clk
0:00:41.1]} 37. Red1 {[%clk 0:00:38.1]} 37... Bg2+ {[%clk 0:00:38.9]} 38. Kh2
{[%clk 0:00:18.6]} 38... Bxf4+ {[%clk 0:00:39.1]} 39. Kg1 {[%clk 0:00:19.2]}
39... Be3+ {[%clk 0:00:39.6]} 40. Kh2 {[%clk 0:00:19]} 40... Ne5 {[%clk
0:00:28.2]} 41. Rd8+ {[%clk 0:00:11.7]} 41... Ke7 {[%clk 0:00:28.1]} 0-1

[Event "Late-Titled-Tuesday-Blitz-April-30-2024"]
[Site "Chess.com"]
[Date "2024.04.30"]
[Round "9"]
[White "NajdorfPlayerc5"]
[Black "Sanyura"]
[Result "0-1"]
[WhiteElo "2495"]
[BlackElo "2660"]
[TimeControl "180+1"]
[EndTime "15:43:48 PDT"]
[Termination "Sanyura won by checkmate"]

1. e4 {[%clk 0:02:47.5]} 1... c5 {[%clk 0:02:59.6]} 2. Nf3 {[%clk 0:02:47.3]}
2... e6 {[%clk 0:02:59.7]} 3. d4 {[%clk 0:02:42.6]} 3... cxd4 {[%clk 0:02:59.8]}
4. Nxd4 {[%clk 0:02:43.5]} 4... Nf6 {[%clk 0:03:00]} 5. Bd3 {[%clk 0:02:36.4]}
5... Nc6 {[%clk 0:02:48.1]} 6. Nxc6 {[%clk 0:02:32.9]} 6... bxc6 {[%clk
0:02:49]} 7. O-O {[%clk 0:02:24.5]} 7... d5 {[%clk 0:02:49.2]} 8. Nd2 {[%clk
0:02:24.4]} 8... Be7 {[%clk 0:02:49.2]} 9. Qf3 {[%clk 0:02:22.6]} 9... O-O
{[%clk 0:02:49.1]} 10. h3 {[%clk 0:02:19.8]} 10... a5 {[%clk 0:02:49.1]} 11. c3
{[%clk 0:02:11.6]} 11... Ba6 {[%clk 0:02:49.1]} 12. Bxa6 {[%clk 0:01:36.9]}
12... Rxa6 {[%clk 0:02:49.1]} 13. Rd1 {[%clk 0:01:29.7]} 13... a4 {[%clk
0:02:46.4]} 14. a3 {[%clk 0:01:30.6]} 14... Qb6 {[%clk 0:02:44.1]} 15. e5 {[%clk
0:01:23.9]} 15... Nd7 {[%clk 0:02:43.8]} 16. Qg3 {[%clk 0:01:23.9]} 16... Qb8
{[%clk 0:02:25.2]} 17. Nf3 {[%clk 0:01:16.1]} 17... g6 {[%clk 0:02:21]} 18. h4
{[%clk 0:01:05.5]} 18... f6 {[%clk 0:02:01.1]} 19. Bf4 {[%clk 0:00:28.1]} 19...
fxe5 {[%clk 0:02:00.4]} 20. Nxe5 {[%clk 0:00:29]} 20... Nxe5 {[%clk 0:02:00.5]}
21. Bxe5 {[%clk 0:00:29.9]} 21... Qd8 {[%clk 0:02:00.8]} 22. h5 {[%clk
0:00:29.5]} 22... Bh4 {[%clk 0:02:00.7]} 23. Qg4 {[%clk 0:00:27]} 23... Bxf2+
{[%clk 0:02:00.3]} 24. Kh1 {[%clk 0:00:24.7]} 24... Rf5 {[%clk 0:01:49]} 25.
hxg6 {[%clk 0:00:14.2]} 25... Rxe5 {[%clk 0:01:46.7]} 26. gxh7+ {[%clk
0:00:14.5]} 26... Kh8 {[%clk 0:01:46.8]} 27. Rf1 {[%clk 0:00:08.9]} 27... Rg5
{[%clk 0:01:30.4]} 28. Qh3 {[%clk 0:00:06.4]} 28... Ra7 {[%clk 0:01:24.4]} 29.
Rxf2 {[%clk 0:00:03.6]} 29... Rxh7 {[%clk 0:01:23.9]} 30. Raf1 {[%clk 0:00:02]}
30... Rxh3+ {[%clk 0:01:23.6]} 31. gxh3 {[%clk 0:00:02.9]} 31... Kg7 {[%clk
0:01:18.6]} 32. Rf7+ {[%clk 0:00:02.7]} 32... Kg6 {[%clk 0:01:19]} 33. h4 {[%clk
0:00:03.3]} 33... Rg4 {[%clk 0:01:17.8]} 34. h5+ {[%clk 0:00:03.3]} 34... Kxh5
{[%clk 0:01:18]} 35. Rh7+ {[%clk 0:00:03.6]} 35... Kg6 {[%clk 0:01:18.3]} 36.
Rff7 {[%clk 0:00:04]} 36... Rh4+ {[%clk 0:01:16.8]} 37. Kg2 {[%clk 0:00:02.1]}
37... Rxh7 {[%clk 0:01:16.5]} 38. Rf3 {[%clk 0:00:02.2]} 38... Rh5 {[%clk
0:01:14.7]} 39. Kf2 {[%clk 0:00:01.7]} 39... Rf5 {[%clk 0:01:14.5]} 40. Ke2
{[%clk 0:00:01.5]} 40... Rxf3 {[%clk 0:01:14.2]} 41. Kxf3 {[%clk 0:00:02.4]}
41... Qb6 {[%clk 0:01:14.5]} 42. c4 {[%clk 0:00:01.3]} 42... Qxb2 {[%clk
0:01:12.4]} 43. cxd5 {[%clk 0:00:01.5]} 43... exd5 {[%clk 0:01:12.7]} 44. Kf4
{[%clk 0:00:00.9]} 44... Qxa3 {[%clk 0:01:12.9]} 45. Ke5 {[%clk 0:00:01.6]}
45... Qe3+ {[%clk 0:01:12.5]} 46. Kd6 {[%clk 0:00:02.3]} 46... a3 {[%clk
0:01:12.7]} 47. Kd7 {[%clk 0:00:02.7]} 47... c5 {[%clk 0:01:12.7]} 48. Kd6
{[%clk 0:00:03.6]} 48... c4 {[%clk 0:01:13]} 49. Kc6 {[%clk 0:00:03.3]} 49... d4
{[%clk 0:01:13.4]} 50. Kd5 {[%clk 0:00:03.3]} 50... a2 {[%clk 0:01:13.5]} 51.
Kc6 {[%clk 0:00:01.9]} 51... c3 {[%clk 0:01:13.6]} 52. Kd5 {[%clk 0:00:02.1]}
52... d3 {[%clk 0:01:13.9]} 53. Kc4 {[%clk 0:00:02.5]} 53... c2 {[%clk
0:01:14.1]} 54. Kc3 {[%clk 0:00:02.5]} 54... a1=Q+ {[%clk 0:01:13.2]} 55. Kc4
{[%clk 0:00:02.6]} 55... c1=Q+ {[%clk 0:01:12]} 56. Kd5 {[%clk 0:00:02.8]} 56...
d2 {[%clk 0:01:10.8]} 57. Kd6 {[%clk 0:00:02.9]} 57... d1=Q# {[%clk 0:01:10.9]}
0-1

[Event "Late-Titled-Tuesday-Blitz-April-30-2024"]
[Site "Chess.com"]
[Date "2024.04.30"]
[Round "9"]
[White "Abund"]
[Black "rdarruda"]
[Result "1-0"]
[WhiteElo "2766"]
[BlackElo "2549"]
[TimeControl "180+1"]
[EndTime "15:43:48 PDT"]
[Termination "Abund won by checkmate"]

1. e4 {[%clk 0:03:00.9]} 1... c5 {[%clk 0:02:55]} 2. Nf3 {[%clk 0:03:01.2]} 2...
Nc6 {[%clk 0:02:53.7]} 3. Bb5 {[%clk 0:02:56.1]} 3... g6 {[%clk 0:02:52.7]} 4.
O-O {[%clk 0:02:52.5]} 4... Bg7 {[%clk 0:02:51.7]} 5. Re1 {[%clk 0:02:53.2]}
5... e5 {[%clk 0:02:50.1]} 6. Bxc6 {[%clk 0:02:52.4]} 6... bxc6 {[%clk
0:02:49.6]} 7. c3 {[%clk 0:02:47.5]} 7... Ne7 {[%clk 0:02:49.6]} 8. d4 {[%clk
0:02:47.5]} 8... cxd4 {[%clk 0:02:50.5]} 9. cxd4 {[%clk 0:02:48.3]} 9... exd4
{[%clk 0:02:50.7]} 10. Nxd4 {[%clk 0:02:48.9]} 10... O-O {[%clk 0:02:51]} 11.
Nc3 {[%clk 0:02:48.8]} 11... Qb6 {[%clk 0:02:47.1]} 12. Nb3 {[%clk 0:02:37.3]}
12... d5 {[%clk 0:02:46.7]} 13. Be3 {[%clk 0:02:31.6]} 13... Qc7 {[%clk
0:02:46.1]} 14. Bc5 {[%clk 0:02:23.1]} 14... dxe4 {[%clk 0:02:35.1]} 15. Rxe4
{[%clk 0:02:22.1]} 15... Be6 {[%clk 0:02:34.9]} 16. Nd4 {[%clk 0:02:20.6]} 16...
Rfd8 {[%clk 0:02:26]} 17. Qe2 {[%clk 0:02:03.5]} 17... Bxd4 {[%clk 0:01:47]} 18.
Bxd4 {[%clk 0:02:03.8]} 18... Nd5 {[%clk 0:01:45.3]} 19. Rxe6 {[%clk 0:01:41.1]}
19... Nf4 {[%clk 0:01:13.9]} 20. Qe5 {[%clk 0:01:31]} 20... Qxe5 {[%clk
0:01:13.6]} 21. Rxe5 {[%clk 0:01:31.5]} 21... Rxd4 {[%clk 0:01:13.4]} 22. g3
{[%clk 0:01:09.6]} 22... Nd5 {[%clk 0:01:11.4]} 23. Rc1 {[%clk 0:00:56.1]} 23...
Rd2 {[%clk 0:00:57.5]} 24. Ne4 {[%clk 0:00:47]} 24... Rxb2 {[%clk 0:00:55.4]}
25. Rxc6 {[%clk 0:00:47.3]} 25... Nb4 {[%clk 0:00:49.2]} 26. Rc7 {[%clk
0:00:41.9]} 26... Rxa2 {[%clk 0:00:41.5]} 27. Rb5 {[%clk 0:00:34.4]} 27... a5
{[%clk 0:00:36.3]} 28. Rbb7 {[%clk 0:00:31.9]} 28... Rf8 {[%clk 0:00:36]} 29.
Ng5 {[%clk 0:00:27.5]} 29... Nd5 {[%clk 0:00:36.1]} 30. Rd7 {[%clk 0:00:20.6]}
30... Nf6 {[%clk 0:00:35.8]} 31. Rdc7 {[%clk 0:00:18.6]} 31... Nd5 {[%clk
0:00:35.7]} 32. Rc5 {[%clk 0:00:16.9]} 32... Nf6 {[%clk 0:00:28.3]} 33. Ra7
{[%clk 0:00:17]} 33... a4 {[%clk 0:00:27.9]} 34. Rcc7 {[%clk 0:00:15.6]} 34...
Nd5 {[%clk 0:00:25.2]} 35. Rcb7 {[%clk 0:00:13.5]} 35... a3 {[%clk 0:00:19.4]}
36. Nxf7 {[%clk 0:00:13]} 36... Rb2 {[%clk 0:00:18.8]} 37. Nh6+ {[%clk
0:00:12.8]} 37... Kh8 {[%clk 0:00:18.6]} 38. Rxh7# {[%clk 0:00:13.7]} 1-0

[Event "Late-Titled-Tuesday-Blitz-April-30-2024"]
[Site "Chess.com"]
[Date "2024.04.30"]
[Round "9"]
[White "vanyakuba"]
[Black "brother-bear"]
[Result "1-0"]
[WhiteElo "2410"]
[BlackElo "2080"]
[TimeControl "180+1"]
[EndTime "15:43:51 PDT"]
[Termination "vanyakuba won on time"]

1. e4 {[%clk 0:02:59.8]} 1... g6 {[%clk 0:02:59.7]} 2. d4 {[%clk 0:02:58.5]}
2... Bg7 {[%clk 0:03:00]} 3. Nc3 {[%clk 0:02:57.9]} 3... c6 {[%clk 0:03:00.1]}
4. h3 {[%clk 0:02:54.9]} 4... d5 {[%clk 0:02:54.5]} 5. Nf3 {[%clk 0:02:53.9]}
5... dxe4 {[%clk 0:02:42.7]} 6. Nxe4 {[%clk 0:02:53.1]} 6... Nd7 {[%clk
0:02:43.4]} 7. Bc4 {[%clk 0:02:50.9]} 7... Ngf6 {[%clk 0:02:43.2]} 8. Nxf6+
{[%clk 0:02:44.2]} 8... Nxf6 {[%clk 0:02:42.4]} 9. O-O {[%clk 0:02:42.7]} 9...
O-O {[%clk 0:02:42.2]} 10. Re1 {[%clk 0:02:41.7]} 10... Nd5 {[%clk 0:02:32.9]}
11. Ne5 {[%clk 0:02:32.8]} 11... Be6 {[%clk 0:02:28.7]} 12. Bf1 {[%clk
0:02:30.5]} 12... Qb6 {[%clk 0:02:09.6]} 13. c3 {[%clk 0:02:23.4]} 13... Rad8
{[%clk 0:02:03.2]} 14. Nc4 {[%clk 0:02:18.6]} 14... Qc7 {[%clk 0:02:01.3]} 15.
Qf3 {[%clk 0:02:18.1]} 15... c5 {[%clk 0:01:52.7]} 16. dxc5 {[%clk 0:02:02.7]}
16... Qxc5 {[%clk 0:01:51.4]} 17. Ne3 {[%clk 0:01:27.3]} 17... b5 {[%clk
0:01:31.1]} 18. Nxd5 {[%clk 0:01:12.1]} 18... Bxd5 {[%clk 0:01:27.4]} 19. Qe3
{[%clk 0:01:12.5]} 19... Qxe3 {[%clk 0:01:03.2]} 20. Bxe3 {[%clk 0:01:13.4]}
20... a6 {[%clk 0:00:53.9]} 21. Bc5 {[%clk 0:01:12.8]} 21... Rfe8 {[%clk
0:00:45.2]} 22. Bxe7 {[%clk 0:01:09.3]} 22... Rd7 {[%clk 0:00:45.1]} 23. Bb4
{[%clk 0:01:08.7]} 23... Rxe1 {[%clk 0:00:34.4]} 24. Rxe1 {[%clk 0:01:09.6]}
24... h5 {[%clk 0:00:34.2]} 25. Ra1 {[%clk 0:01:04]} 25... Be5 {[%clk
0:00:25.4]} 26. a4 {[%clk 0:01:00.8]} 26... Bc4 {[%clk 0:00:20]} 27. axb5 {[%clk
0:00:51.4]} 27... axb5 {[%clk 0:00:19.9]} 28. Ra8+ {[%clk 0:00:44.3]} 28... Kh7
{[%clk 0:00:18.6]} 29. Bxc4 {[%clk 0:00:40.3]} 29... bxc4 {[%clk 0:00:18.2]} 30.
g3 {[%clk 0:00:39.6]} 30... Rd2 {[%clk 0:00:17.7]} 31. Rc8 {[%clk 0:00:38.9]}
31... Rxb2 {[%clk 0:00:13.7]} 32. Rxc4 {[%clk 0:00:38.8]} 32... Rc2 {[%clk
0:00:08.6]} 33. Kg2 {[%clk 0:00:38.4]} 33... Kg7 {[%clk 0:00:08.6]} 34. Kf3
{[%clk 0:00:38.7]} 34... Bb8 {[%clk 0:00:07.1]} 35. Rc8 {[%clk 0:00:38]} 35...
Ba7 {[%clk 0:00:06.8]} 36. c4 {[%clk 0:00:26.8]} 36... Rxf2+ {[%clk 0:00:04.5]}
37. Ke4 {[%clk 0:00:27.5]} 37... Rg2 {[%clk 0:00:01.9]} 38. c5 {[%clk
0:00:24.5]} 38... Rxg3 {[%clk 0:00:00.5]} 39. c6 {[%clk 0:00:24.7]} 1-0

[Event "Late-Titled-Tuesday-Blitz-April-30-2024"]
[Site "Chess.com"]
[Date "2024.04.30"]
[Round "9"]
[White "Hilary46"]
[Black "Sergey_70"]
[Result "0-1"]
[WhiteElo "2711"]
[BlackElo "2510"]
[TimeControl "180+1"]
[EndTime "15:43:54 PDT"]
[Termination "Sergey_70 won by checkmate"]

1. e4 {[%clk 0:02:38.9]} 1... c5 {[%clk 0:02:59.5]} 2. Nf3 {[%clk 0:02:39.2]}
2... d6 {[%clk 0:02:59.8]} 3. d4 {[%clk 0:02:40]} 3... cxd4 {[%clk 0:02:59.7]}
4. Nxd4 {[%clk 0:02:40.9]} 4... Nf6 {[%clk 0:02:59.9]} 5. Nc3 {[%clk 0:02:41.7]}
5... Nc6 {[%clk 0:03:00.2]} 6. Bg5 {[%clk 0:02:42.1]} 6... Bd7 {[%clk
0:02:59.6]} 7. Qd2 {[%clk 0:02:42.2]} 7... Rc8 {[%clk 0:02:59.4]} 8. O-O-O
{[%clk 0:02:42.8]} 8... Nxd4 {[%clk 0:02:59.5]} 9. Qxd4 {[%clk 0:02:43.7]} 9...
Qa5 {[%clk 0:02:59.5]} 10. f4 {[%clk 0:02:44.3]} 10... Rxc3 {[%clk 0:02:58.8]}
11. bxc3 {[%clk 0:02:45]} 11... e5 {[%clk 0:02:58.5]} 12. Qb4 {[%clk 0:02:45.7]}
12... Qxb4 {[%clk 0:02:51.8]} 13. cxb4 {[%clk 0:02:46.6]} 13... Nxe4 {[%clk
0:02:52]} 14. Bh4 {[%clk 0:02:47.3]} 14... g5 {[%clk 0:02:51.3]} 15. fxg5 {[%clk
0:02:48.2]} 15... Be7 {[%clk 0:02:40]} 16. Bc4 {[%clk 0:02:47.2]} 16... h6
{[%clk 0:02:30.8]} 17. Rhf1 {[%clk 0:02:47.5]} 17... hxg5 {[%clk 0:02:13.5]} 18.
Bxf7+ {[%clk 0:02:37]} 18... Kd8 {[%clk 0:02:13.5]} 19. Bg3 {[%clk 0:02:18.4]}
19... Nc3 {[%clk 0:01:49.6]} 20. Rde1 {[%clk 0:01:52.4]} 20... Bc6 {[%clk
0:01:40]} 21. Kb2 {[%clk 0:01:06.8]} 21... Na4+ {[%clk 0:01:12.6]} 22. Kb3
{[%clk 0:01:04.3]} 22... b5 {[%clk 0:01:12.6]} 23. Rd1 {[%clk 0:00:53.6]} 23...
Bxg2 {[%clk 0:00:54.4]} 24. Rf2 {[%clk 0:00:36.9]} 24... Bc6 {[%clk 0:00:45]}
25. Bxe5 {[%clk 0:00:36.9]} 25... Rh3+ {[%clk 0:00:42.9]} 26. Bg3 {[%clk
0:00:36]} 26... Nb6 {[%clk 0:00:38.6]} 27. c4 {[%clk 0:00:31.9]} 27... bxc4+
{[%clk 0:00:37]} 28. Bxc4 {[%clk 0:00:32.8]} 28... Ba4+ {[%clk 0:00:36.6]} 29.
Kc3 {[%clk 0:00:28.4]} 29... Bxd1 {[%clk 0:00:36.4]} 30. Be6 {[%clk 0:00:25.3]}
30... Rh6 {[%clk 0:00:32.7]} 31. Rd2 {[%clk 0:00:25.8]} 31... Rxe6 {[%clk
0:00:30.6]} 32. Rxd1 {[%clk 0:00:26.4]} 32... Kd7 {[%clk 0:00:29.2]} 33. Rd3
{[%clk 0:00:24.5]} 33... Re2 {[%clk 0:00:28.8]} 34. Kb3 {[%clk 0:00:24.1]} 34...
d5 {[%clk 0:00:27]} 35. a4 {[%clk 0:00:19.6]} 35... Ke6 {[%clk 0:00:26.2]} 36.
a5 {[%clk 0:00:12]} 36... Nc4 {[%clk 0:00:26]} 37. Ka4 {[%clk 0:00:12.9]} 37...
a6 {[%clk 0:00:25.2]} 38. Kb3 {[%clk 0:00:05.5]} 38... Rb2+ {[%clk 0:00:23]} 39.
Ka4 {[%clk 0:00:05.6]} 39... Rxb4# {[%clk 0:00:20.9]} 0-1